[Event "Early-Titled-Tuesday-Blitz-October-10-2023"]
[Site "Chess.com"]
[Date "2023.10.10"]
[Round "9"]
[White "JimDiGrease"]
[Black "djano"]
[Result "1-0"]
[WhiteElo "2906"]
[BlackElo "2676"]
[TimeControl "180+1"]
[EndTime "9:44:10 PDT"]
[Termination "JimDiGrease won by resignation"]

1. d4 {[%clk 0:03:00.9]} 1... d5 {[%clk 0:02:59.2]} 2. c4 {[%clk 0:03:00.6]}
2... e6 {[%clk 0:02:58.6]} 3. Nf3 {[%clk 0:03:00.3]} 3... h6 {[%clk 0:02:57.5]}
4. e3 {[%clk 0:02:49.5]} 4... Nf6 {[%clk 0:02:57.4]} 5. Nc3 {[%clk 0:02:49.2]}
5... Nc6 {[%clk 0:02:49.9]} 6. b3 {[%clk 0:02:33.6]} 6... Bb4 {[%clk 0:02:47.6]}
7. Bb2 {[%clk 0:02:32.6]} 7... Ne4 {[%clk 0:02:44.6]} 8. Rc1 {[%clk 0:02:32.1]}
8... Qf6 {[%clk 0:02:36.6]} 9. Bd3 {[%clk 0:02:25.8]} 9... Nxc3 {[%clk
0:02:30.5]} 10. Bxc3 {[%clk 0:02:25.9]} 10... Bxc3+ {[%clk 0:02:30.1]} 11. Rxc3
{[%clk 0:02:26.8]} 11... Ne7 {[%clk 0:02:20.3]} 12. cxd5 {[%clk 0:02:16.2]}
12... exd5 {[%clk 0:02:20.4]} 13. Rc1 {[%clk 0:02:16.9]} 13... c6 {[%clk
0:02:16.8]} 14. b4 {[%clk 0:02:07.7]} 14... a6 {[%clk 0:02:11.8]} 15. a4 {[%clk
0:02:01.8]} 15... Bf5 {[%clk 0:02:00.4]} 16. b5 {[%clk 0:01:55.5]} 16... O-O
{[%clk 0:01:52]} 17. bxc6 {[%clk 0:01:45.3]} 17... bxc6 {[%clk 0:01:52.4]} 18.
O-O {[%clk 0:01:39.9]} 18... Rfb8 {[%clk 0:01:47.1]} 19. Rc5 {[%clk 0:01:36.7]}
19... Bg4 {[%clk 0:01:43.6]} 20. Be2 {[%clk 0:01:35]} 20... Rb2 {[%clk 0:01:40]}
21. h3 {[%clk 0:01:31.5]} 21... Bxf3 {[%clk 0:01:35.6]} 22. Bxf3 {[%clk
0:01:32.4]} 22... Rab8 {[%clk 0:01:28.5]} 23. Qd3 {[%clk 0:01:28.7]} 23... R8b6
{[%clk 0:01:23.4]} 24. Rfc1 {[%clk 0:01:18.6]} 24... g6 {[%clk 0:01:19.8]} 25.
Ra5 {[%clk 0:01:08.7]} 25... Nf5 {[%clk 0:01:10.8]} 26. Rxa6 {[%clk 0:01:00.2]}
26... Rxa6 {[%clk 0:00:35.9]} 27. Qxa6 {[%clk 0:01:01.1]} 27... Nh4 {[%clk
0:00:36.2]} 28. Qc8+ {[%clk 0:00:55.5]} 28... Kg7 {[%clk 0:00:36.5]} 29. Qg4
{[%clk 0:00:55]} 29... h5 {[%clk 0:00:36.4]} 30. Qg3 {[%clk 0:00:52.4]} 30...
Ra2 {[%clk 0:00:29.5]} 31. Bd1 {[%clk 0:00:33.7]} 31... Kh7 {[%clk 0:00:19.1]}
32. Bc2 {[%clk 0:00:21.5]} 32... Qe7 {[%clk 0:00:14.4]} 33. Bb3 {[%clk
0:00:14.7]} 33... Rb2 {[%clk 0:00:11.4]} 34. Bd1 {[%clk 0:00:14.7]} 34... Ra2
{[%clk 0:00:10.7]} 35. Qf4 {[%clk 0:00:08.1]} 35... Nf5 {[%clk 0:00:07.9]} 36.
Rxc6 {[%clk 0:00:06.7]} 36... Ra1 {[%clk 0:00:07.5]} 37. Qf3 {[%clk 0:00:07.4]}
37... Nxd4 {[%clk 0:00:06.4]} 38. exd4 {[%clk 0:00:06.9]} 38... Qe1+ {[%clk
0:00:06.7]} 39. Kh2 {[%clk 0:00:07.6]} 39... Rxd1 {[%clk 0:00:07.1]} 40. Qxf7+
{[%clk 0:00:07.9]} 40... Kh8 {[%clk 0:00:03.9]} 41. Rc8+ {[%clk 0:00:07.6]} 1-0

[Event "Early-Titled-Tuesday-Blitz-October-10-2023"]
[Site "Chess.com"]
[Date "2023.10.10"]
[Round "9"]
[White "ChainedDowntohell"]
[Black "soumeow"]
[Result "1-0"]
[WhiteElo "2432"]
[BlackElo "2296"]
[TimeControl "180+1"]
[EndTime "9:44:10 PDT"]
[Termination "ChainedDowntohell won on time"]

1. d4 {[%clk 0:03:00.9]} 1... Nf6 {[%clk 0:02:58.6]} 2. c4 {[%clk 0:03:00.3]}
2... g6 {[%clk 0:02:58.9]} 3. Nc3 {[%clk 0:02:58.5]} 3... Bg7 {[%clk 0:02:59.2]}
4. e4 {[%clk 0:02:57.8]} 4... d6 {[%clk 0:02:59.8]} 5. Bd3 {[%clk 0:02:56.8]}
5... O-O {[%clk 0:02:59.6]} 6. Nge2 {[%clk 0:02:56.8]} 6... c5 {[%clk
0:02:56.4]} 7. d5 {[%clk 0:02:53.4]} 7... e6 {[%clk 0:02:56.4]} 8. O-O {[%clk
0:02:52.4]} 8... exd5 {[%clk 0:02:56.3]} 9. exd5 {[%clk 0:02:43.3]} 9... Nbd7
{[%clk 0:02:47.7]} 10. f4 {[%clk 0:02:35.9]} 10... Re8 {[%clk 0:02:45.8]} 11.
Ng3 {[%clk 0:02:33.3]} 11... a6 {[%clk 0:02:42.8]} 12. a4 {[%clk 0:02:30.7]}
12... Rb8 {[%clk 0:02:34.9]} 13. f5 {[%clk 0:02:25.4]} 13... Ne5 {[%clk
0:02:30.6]} 14. Be2 {[%clk 0:02:23.3]} 14... h6 {[%clk 0:02:07.3]} 15. fxg6
{[%clk 0:02:18.3]} 15... fxg6 {[%clk 0:02:08.2]} 16. Qc2 {[%clk 0:02:14.4]}
16... Qe7 {[%clk 0:01:47.5]} 17. h3 {[%clk 0:02:13.2]} 17... Bd7 {[%clk
0:01:39]} 18. Bf4 {[%clk 0:02:09.9]} 18... Rf8 {[%clk 0:01:12.6]} 19. Rae1
{[%clk 0:02:07.6]} 19... g5 {[%clk 0:01:08.5]} 20. Bd2 {[%clk 0:02:03.8]} 20...
Ne8 {[%clk 0:00:57.8]} 21. Rxf8+ {[%clk 0:02:01.6]} 21... Bxf8 {[%clk
0:00:50.2]} 22. Nf5 {[%clk 0:01:52.8]} 22... Qh7 {[%clk 0:00:47.8]} 23. Rf1
{[%clk 0:01:48.6]} 23... Ng7 {[%clk 0:00:40.4]} 24. g4 {[%clk 0:01:28.9]} 24...
Nxf5 {[%clk 0:00:32.7]} 25. gxf5 {[%clk 0:01:28.4]} 25... Be7 {[%clk 0:00:30.4]}
26. Qe4 {[%clk 0:00:58.7]} 26... Rf8 {[%clk 0:00:26.6]} 27. f6 {[%clk
0:00:58.6]} 27... Rxf6 {[%clk 0:00:19.9]} 28. Rxf6 {[%clk 0:00:54.3]} 28... Bxf6
{[%clk 0:00:19.9]} 29. Qe3 {[%clk 0:00:54.7]} 29... Qf5 {[%clk 0:00:16.9]} 30.
Ne4 {[%clk 0:00:53]} 30... Be7 {[%clk 0:00:17.1]} 31. Kg2 {[%clk 0:00:50.8]}
31... Kg7 {[%clk 0:00:14.5]} 32. Bc3 {[%clk 0:00:49]} 32... Kf8 {[%clk
0:00:13.8]} 33. Nxc5 {[%clk 0:00:45.4]} 33... dxc5 {[%clk 0:00:11.8]} 34. Bxe5
{[%clk 0:00:44.1]} 34... Kg8 {[%clk 0:00:09.5]} 35. Bd3 {[%clk 0:00:35]} 35...
Qf7 {[%clk 0:00:06.2]} 36. Qe4 {[%clk 0:00:35.1]} 36... Bxa4 {[%clk 0:00:04.2]}
37. Be2 {[%clk 0:00:30.1]} 37... Bd7 {[%clk 0:00:03.6]} 38. Bf3 {[%clk
0:00:26.4]} 38... Bf5 {[%clk 0:00:03.4]} 39. Qe3 {[%clk 0:00:26.2]} 39... Bf6
{[%clk 0:00:01.9]} 40. Bxf6 {[%clk 0:00:19]} 40... Qxf6 {[%clk 0:00:02.8]} 41.
Qxc5 {[%clk 0:00:18.2]} 41... Qxb2+ {[%clk 0:00:02.3]} 42. Kg1 {[%clk
0:00:17.4]} 1-0

[Event "Early-Titled-Tuesday-Blitz-October-10-2023"]
[Site "Chess.com"]
[Date "2023.10.10"]
[Round "9"]
[White "ActorXu"]
[Black "OparinGrigoriy"]
[Result "1-0"]
[WhiteElo "2766"]
[BlackElo "2977"]
[TimeControl "180+1"]
[EndTime "9:44:12 PDT"]
[Termination "ActorXu won by resignation"]

1. e4 {[%clk 0:03:00.9]} 1... c5 {[%clk 0:02:59.9]} 2. Nf3 {[%clk 0:02:58.5]}
2... Nc6 {[%clk 0:03:00.5]} 3. Bb5 {[%clk 0:02:57]} 3... e6 {[%clk 0:02:59.3]}
4. O-O {[%clk 0:02:56.5]} 4... Nge7 {[%clk 0:03:00]} 5. Re1 {[%clk 0:02:56.5]}
5... h6 {[%clk 0:02:59.1]} 6. c3 {[%clk 0:02:43.7]} 6... a6 {[%clk 0:02:59.4]}
7. Bf1 {[%clk 0:02:43.3]} 7... d5 {[%clk 0:03:00.1]} 8. e5 {[%clk 0:02:43.2]}
8... d4 {[%clk 0:02:59.7]} 9. Bd3 {[%clk 0:02:41.4]} 9... Nf5 {[%clk 0:02:49.4]}
10. Be4 {[%clk 0:02:34.8]} 10... Bd7 {[%clk 0:02:47.9]} 11. d3 {[%clk
0:02:29.1]} 11... Be7 {[%clk 0:02:47.8]} 12. Nbd2 {[%clk 0:02:28.6]} 12... Rc8
{[%clk 0:02:45.2]} 13. Nc4 {[%clk 0:02:22.9]} 13... b5 {[%clk 0:02:43.3]} 14.
Bxf5 {[%clk 0:02:16]} 14... bxc4 {[%clk 0:02:41.5]} 15. Be4 {[%clk 0:02:15.8]}
15... cxd3 {[%clk 0:02:34.4]} 16. Qxd3 {[%clk 0:02:12]} 16... Qb6 {[%clk
0:02:24.2]} 17. b3 {[%clk 0:01:55.5]} 17... O-O {[%clk 0:02:20]} 18. Bf4 {[%clk
0:01:28.2]} 18... Rfd8 {[%clk 0:02:19.5]} 19. Nd2 {[%clk 0:01:26.3]} 19... dxc3
{[%clk 0:02:09.6]} 20. Qxc3 {[%clk 0:01:26.6]} 20... Qb4 {[%clk 0:02:08.2]} 21.
Qg3 {[%clk 0:01:24.9]} 21... Kh8 {[%clk 0:02:02.9]} 22. Nc4 {[%clk 0:01:24.5]}
22... Nd4 {[%clk 0:02:01.4]} 23. Qh3 {[%clk 0:01:12.5]} 23... Bf8 {[%clk
0:01:54]} 24. Nd6 {[%clk 0:01:05.5]} 24... Kg8 {[%clk 0:01:45.5]} 25. Nxf7
{[%clk 0:00:39.2]} 25... Kxf7 {[%clk 0:01:36.5]} 26. Qh5+ {[%clk 0:00:39.5]}
26... Kg8 {[%clk 0:01:36.6]} 27. Qg6 {[%clk 0:00:38.3]} 27... Nf5 {[%clk
0:01:37.1]} 28. g4 {[%clk 0:00:32.4]} 28... Ne7 {[%clk 0:00:47.7]} 29. Qh7+
{[%clk 0:00:32.5]} 29... Kf7 {[%clk 0:00:48.3]} 30. Re3 {[%clk 0:00:29.7]} 30...
Bc6 {[%clk 0:00:47.3]} 31. f3 {[%clk 0:00:27.9]} 31... Rd2 {[%clk 0:00:37.6]}
32. Kh1 {[%clk 0:00:25.7]} 32... Qd4 {[%clk 0:00:34.4]} 33. Rae1 {[%clk
0:00:25.8]} 33... Ke8 {[%clk 0:00:29.5]} 34. g5 {[%clk 0:00:20.4]} 34... hxg5
{[%clk 0:00:24.2]} 35. Bxg5 {[%clk 0:00:20.3]} 35... Bxe4 {[%clk 0:00:24.5]} 36.
fxe4 {[%clk 0:00:20]} 36... Qxe5 {[%clk 0:00:24]} 37. Qh4 {[%clk 0:00:19.5]}
37... Rcd8 {[%clk 0:00:23]} 38. Rf3 {[%clk 0:00:17.5]} 38... R8d4 {[%clk
0:00:18.4]} 39. Qh5+ {[%clk 0:00:17.4]} 39... g6 {[%clk 0:00:16]} 40. Rxf8+
{[%clk 0:00:15.2]} 40... Kxf8 {[%clk 0:00:13.8]} 41. Bxe7+ {[%clk 0:00:15.1]}
41... Kxe7 {[%clk 0:00:09.6]} 42. Qxe5 {[%clk 0:00:15.8]} 42... c4 {[%clk
0:00:07.3]} 43. bxc4 {[%clk 0:00:15]} 43... Rxc4 {[%clk 0:00:07.9]} 44. Qg5+
{[%clk 0:00:14.4]} 1-0

[Event "Early-Titled-Tuesday-Blitz-October-10-2023"]
[Site "Chess.com"]
[Date "2023.10.10"]
[Round "9"]
[White "kidagent"]
[Black "Cambek64"]
[Result "1-0"]
[WhiteElo "2279"]
[BlackElo "2414"]
[TimeControl "180+1"]
[EndTime "9:44:13 PDT"]
[Termination "kidagent won on time"]

1. c4 {[%clk 0:02:59.1]} 1... a6 {[%clk 0:02:57.4]} 2. g3 {[%clk 0:02:57.3]}
2... b5 {[%clk 0:02:57.1]} 3. Bg2 {[%clk 0:02:57.4]} 3... c6 {[%clk 0:02:56.8]}
4. Na3 {[%clk 0:02:50]} 4... d5 {[%clk 0:02:55.6]} 5. cxd5 {[%clk 0:02:47]} 5...
cxd5 {[%clk 0:02:55]} 6. Nf3 {[%clk 0:02:42]} 6... Nf6 {[%clk 0:02:53.8]} 7. O-O
{[%clk 0:02:41.4]} 7... e6 {[%clk 0:02:50.2]} 8. b3 {[%clk 0:02:40.6]} 8... Nc6
{[%clk 0:02:45.6]} 9. Bb2 {[%clk 0:02:39.4]} 9... Bb7 {[%clk 0:02:45.9]} 10. d3
{[%clk 0:02:33.9]} 10... Bd6 {[%clk 0:02:36.5]} 11. Re1 {[%clk 0:02:29.1]} 11...
Qe7 {[%clk 0:02:22.5]} 12. Nc2 {[%clk 0:02:26.9]} 12... e5 {[%clk 0:02:21.4]}
13. e4 {[%clk 0:02:25.2]} 13... d4 {[%clk 0:02:21]} 14. a4 {[%clk 0:02:19.1]}
14... O-O {[%clk 0:02:18.7]} 15. Ba3 {[%clk 0:02:06.2]} 15... Bxa3 {[%clk
0:02:11.6]} 16. Nxa3 {[%clk 0:02:05.4]} 16... Qb4 {[%clk 0:01:48]} 17. Re2
{[%clk 0:01:57.6]} 17... Rfe8 {[%clk 0:01:41.5]} 18. Bh3 {[%clk 0:01:32.9]}
18... Bc8 {[%clk 0:01:33.5]} 19. Bxc8 {[%clk 0:01:19.2]} 19... Raxc8 {[%clk
0:01:30]} 20. Rb2 {[%clk 0:01:04.1]} 20... bxa4 {[%clk 0:01:24.1]} 21. Nc4
{[%clk 0:01:03.2]} 21... a5 {[%clk 0:01:09.5]} 22. bxa4 {[%clk 0:00:58.7]} 22...
Qe7 {[%clk 0:01:00.3]} 23. Rb5 {[%clk 0:00:57.8]} 23... Nd7 {[%clk 0:00:58.6]}
24. Rab1 {[%clk 0:00:53.5]} 24... f6 {[%clk 0:00:57.6]} 25. Nxa5 {[%clk
0:00:52]} 25... Nxa5 {[%clk 0:00:56.2]} 26. Rxa5 {[%clk 0:00:52.1]} 26... Nc5
{[%clk 0:00:53.8]} 27. Rab5 {[%clk 0:00:48.5]} 27... Rc7 {[%clk 0:00:37.1]} 28.
Nd2 {[%clk 0:00:46.8]} 28... Rec8 {[%clk 0:00:35.9]} 29. Nc4 {[%clk 0:00:46.7]}
29... Nxe4 {[%clk 0:00:26.5]} 30. Qb3 {[%clk 0:00:31.3]} 30... Nc5 {[%clk
0:00:16.2]} 31. Rxc5 {[%clk 0:00:30.7]} 31... Rxc5 {[%clk 0:00:12.4]} 32. Nd6+
{[%clk 0:00:20]} 32... Kf8 {[%clk 0:00:09.4]} 33. Nxc8 {[%clk 0:00:20.9]} 33...
Rxc8 {[%clk 0:00:08.8]} 34. a5 {[%clk 0:00:21.4]} 34... Qc5 {[%clk 0:00:05.4]}
35. a6 {[%clk 0:00:17.8]} 35... Rc7 {[%clk 0:00:05.4]} 36. Qb8+ {[%clk
0:00:16.7]} 36... Ke7 {[%clk 0:00:05.8]} 37. Rb7 {[%clk 0:00:15.4]} 37... Kd7
{[%clk 0:00:01.9]} 38. a7 {[%clk 0:00:14]} 38... Qc1+ {[%clk 0:00:02.6]} 39. Kg2
{[%clk 0:00:13.6]} 39... Qc6+ {[%clk 0:00:02.5]} 40. Kh3 {[%clk 0:00:13.4]} 1-0

[Event "Early-Titled-Tuesday-Blitz-October-10-2023"]
[Site "Chess.com"]
[Date "2023.10.10"]
[Round "9"]
[White "YairParkhov"]
[Black "Dannyyi"]
[Result "1-0"]
[WhiteElo "2521"]
[BlackElo "2173"]
[TimeControl "180+1"]
[EndTime "9:44:18 PDT"]
[Termination "YairParkhov won by checkmate"]

1. d4 {[%clk 0:02:57.5]} 1... Nf6 {[%clk 0:02:59.2]} 2. c4 {[%clk 0:02:56.9]}
2... g6 {[%clk 0:02:59.3]} 3. Nc3 {[%clk 0:02:56.2]} 3... d5 {[%clk 0:02:59.6]}
4. cxd5 {[%clk 0:02:56.2]} 4... Nxd5 {[%clk 0:03:00.5]} 5. Nf3 {[%clk
0:02:53.2]} 5... Bg7 {[%clk 0:02:59.8]} 6. Bg5 {[%clk 0:02:53.6]} 6... Nxc3
{[%clk 0:02:56.2]} 7. bxc3 {[%clk 0:02:53.4]} 7... c5 {[%clk 0:02:56]} 8. e3
{[%clk 0:02:51.5]} 8... Nc6 {[%clk 0:02:53.6]} 9. Bc4 {[%clk 0:02:46.9]} 9...
O-O {[%clk 0:02:50.4]} 10. O-O {[%clk 0:02:45.8]} 10... Qd6 {[%clk 0:02:49.1]}
11. Bf4 {[%clk 0:02:39.2]} 11... Qd8 {[%clk 0:02:43.4]} 12. h3 {[%clk
0:02:36.3]} 12... Bf5 {[%clk 0:02:42]} 13. Qe2 {[%clk 0:02:32.4]} 13... Na5
{[%clk 0:02:27.5]} 14. Bd3 {[%clk 0:02:16.7]} 14... Bxd3 {[%clk 0:02:26.8]} 15.
Qxd3 {[%clk 0:02:16.8]} 15... Rc8 {[%clk 0:02:26.7]} 16. Rab1 {[%clk 0:02:14.5]}
16... b6 {[%clk 0:02:26]} 17. Rfd1 {[%clk 0:02:10.8]} 17... Qd5 {[%clk
0:02:19.7]} 18. Rb2 {[%clk 0:01:50]} 18... Rfd8 {[%clk 0:02:18]} 19. Re2 {[%clk
0:01:45.4]} 19... e6 {[%clk 0:02:14.3]} 20. Be5 {[%clk 0:01:38.2]} 20... Bxe5
{[%clk 0:02:03.4]} 21. Nxe5 {[%clk 0:01:39.1]} 21... Nc6 {[%clk 0:02:01.9]} 22.
Nxc6 {[%clk 0:01:34.8]} 22... Qxc6 {[%clk 0:02:02.8]} 23. Red2 {[%clk
0:01:31.1]} 23... Qa4 {[%clk 0:01:50.6]} 24. e4 {[%clk 0:01:29]} 24... cxd4
{[%clk 0:01:48.8]} 25. cxd4 {[%clk 0:01:27.6]} 25... Rc4 {[%clk 0:01:46]} 26. h4
{[%clk 0:01:23.2]} 26... h5 {[%clk 0:01:43.2]} 27. Qe3 {[%clk 0:01:18.4]} 27...
b5 {[%clk 0:01:39.3]} 28. g4 {[%clk 0:01:11]} 28... hxg4 {[%clk 0:01:31]} 29. h5
{[%clk 0:01:10.2]} 29... Kg7 {[%clk 0:01:15.4]} 30. h6+ {[%clk 0:01:04.9]} 30...
Kh7 {[%clk 0:01:14.2]} 31. Qf4 {[%clk 0:00:56.4]} 31... Qb4 {[%clk 0:01:00.8]}
32. Qxf7+ {[%clk 0:00:40.6]} 32... Kxh6 {[%clk 0:01:00.2]} 33. Kg2 {[%clk
0:00:39.3]} 33... Qf8 {[%clk 0:00:49.5]} 34. Qxf8+ {[%clk 0:00:15.4]} 34... Rxf8
{[%clk 0:00:50.4]} 35. d5 {[%clk 0:00:15.8]} 35... exd5 {[%clk 0:00:47.9]} 36.
exd5 {[%clk 0:00:16.1]} 36... Rd8 {[%clk 0:00:46.7]} 37. d6 {[%clk 0:00:17]}
37... Rd7 {[%clk 0:00:46.2]} 38. Re1 {[%clk 0:00:16.7]} 38... Rc6 {[%clk
0:00:44.3]} 39. Re6 {[%clk 0:00:16.5]} 39... a5 {[%clk 0:00:41.5]} 40. Rd4
{[%clk 0:00:16.5]} 40... Rc4 {[%clk 0:00:33]} 41. Rd1 {[%clk 0:00:15]} 41... Rc6
{[%clk 0:00:28.4]} 42. Rd4 {[%clk 0:00:14.6]} 42... Kh7 {[%clk 0:00:19]} 43. Kg3
{[%clk 0:00:10.4]} 43... b4 {[%clk 0:00:17.9]} 44. Kxg4 {[%clk 0:00:10.1]} 44...
Kh6 {[%clk 0:00:17.3]} 45. f3 {[%clk 0:00:09.9]} 45... Rc1 {[%clk 0:00:15.4]}
46. Kg3 {[%clk 0:00:09.7]} 46... Rc2 {[%clk 0:00:14.6]} 47. Rh4+ {[%clk
0:00:09.2]} 47... Kg5 {[%clk 0:00:14.7]} 48. Rg4+ {[%clk 0:00:10]} 48... Kf5
{[%clk 0:00:14.7]} 49. Rgxg6 {[%clk 0:00:10.9]} 49... Rxa2 {[%clk 0:00:12.1]}
50. Rgf6+ {[%clk 0:00:11.8]} 50... Kg5 {[%clk 0:00:12.1]} 51. f4+ {[%clk
0:00:12.7]} 51... Kh5 {[%clk 0:00:12]} 52. Rh6# {[%clk 0:00:13.6]} 1-0

[Event "Early-Titled-Tuesday-Blitz-October-10-2023"]
[Site "Chess.com"]
[Date "2023.10.10"]
[Round "9"]
[White "JAN2404"]
[Black "CraiggoryC"]
[Result "0-1"]
[WhiteElo "2073"]
[BlackElo "2261"]
[TimeControl "180+1"]
[EndTime "9:44:21 PDT"]
[Termination "CraiggoryC won on time"]

1. e4 {[%clk 0:02:37.2]} 1... e6 {[%clk 0:02:59.7]} 2. Nc3 {[%clk 0:02:26.8]}
2... d5 {[%clk 0:02:59.2]} 3. exd5 {[%clk 0:02:25.8]} 3... exd5 {[%clk
0:03:00.1]} 4. d4 {[%clk 0:02:26.1]} 4... Nf6 {[%clk 0:02:59.9]} 5. Nf3 {[%clk
0:02:27]} 5... c6 {[%clk 0:02:59.6]} 6. Be2 {[%clk 0:02:25.9]} 6... Be7 {[%clk
0:02:59.2]} 7. O-O {[%clk 0:02:25.9]} 7... O-O {[%clk 0:02:59.8]} 8. Bf4 {[%clk
0:02:24.8]} 8... Nbd7 {[%clk 0:02:59.1]} 9. Re1 {[%clk 0:02:23.6]} 9... Re8
{[%clk 0:02:59.7]} 10. h3 {[%clk 0:02:19.8]} 10... Nf8 {[%clk 0:03:00.2]} 11.
Bd3 {[%clk 0:02:08.7]} 11... Ne6 {[%clk 0:03:00]} 12. Bg3 {[%clk 0:02:06.2]}
12... g6 {[%clk 0:03:00.6]} 13. Ne5 {[%clk 0:02:06.1]} 13... Ng7 {[%clk
0:03:00.5]} 14. Qf3 {[%clk 0:01:59.5]} 14... Bf5 {[%clk 0:02:55.4]} 15. Rad1
{[%clk 0:01:55]} 15... Nd7 {[%clk 0:02:43.8]} 16. a4 {[%clk 0:01:38.6]} 16... a5
{[%clk 0:02:39.1]} 17. Re2 {[%clk 0:01:37.6]} 17... Nxe5 {[%clk 0:02:32.9]} 18.
Bxe5 {[%clk 0:01:26.8]} 18... Bxd3 {[%clk 0:02:19.8]} 19. Qxd3 {[%clk
0:01:08.7]} 19... f6 {[%clk 0:01:55.6]} 20. Bg3 {[%clk 0:01:00.1]} 20... Bd6
{[%clk 0:01:52.2]} 21. Rde1 {[%clk 0:00:59.7]} 21... Qd7 {[%clk 0:01:41.2]} 22.
Bxd6 {[%clk 0:00:57.7]} 22... Qxd6 {[%clk 0:01:40.5]} 23. Nb1 {[%clk 0:00:40.8]}
23... Qb4 {[%clk 0:01:15.7]} 24. b3 {[%clk 0:00:30.5]} 24... Qxe1+ {[%clk
0:01:15.3]} 25. Rxe1 {[%clk 0:00:24.7]} 25... Rxe1+ {[%clk 0:01:16.2]} 26. Kh2
{[%clk 0:00:25.5]} 26... Rxb1 {[%clk 0:01:16.5]} 27. Qg3 {[%clk 0:00:19.9]}
27... Re1 {[%clk 0:00:54.7]} 28. Qc7 {[%clk 0:00:18]} 28... Re2 {[%clk
0:00:34.3]} 29. Qxb7 {[%clk 0:00:17.3]} 29... Rae8 {[%clk 0:00:34]} 30. Qxc6
{[%clk 0:00:15.5]} 30... Rxf2 {[%clk 0:00:33.8]} 31. Qxd5+ {[%clk 0:00:15.7]}
31... Kh8 {[%clk 0:00:25.4]} 32. Kg3 {[%clk 0:00:15]} 32... Ree2 {[%clk
0:00:23.1]} 33. Qd8+ {[%clk 0:00:14.2]} 33... Ne8 {[%clk 0:00:23.2]} 34. Qd5
{[%clk 0:00:09.8]} 34... Rxg2+ {[%clk 0:00:10.3]} 35. Qxg2 {[%clk 0:00:09.2]}
35... Rxg2+ {[%clk 0:00:11.2]} 36. Kxg2 {[%clk 0:00:10]} 36... Kg7 {[%clk
0:00:11.9]} 37. Kf3 {[%clk 0:00:10.1]} 37... Kf7 {[%clk 0:00:12.5]} 38. c4
{[%clk 0:00:10.2]} 38... Ke6 {[%clk 0:00:12.3]} 39. Ke3 {[%clk 0:00:10.3]} 39...
Kd6 {[%clk 0:00:12.3]} 40. Kd3 {[%clk 0:00:08.7]} 40... f5 {[%clk 0:00:10.8]}
41. c5+ {[%clk 0:00:05.9]} 41... Kd5 {[%clk 0:00:09.8]} 42. Ke3 {[%clk
0:00:06.6]} 42... g5 {[%clk 0:00:09.6]} 43. h4 {[%clk 0:00:03.4]} 43... h6
{[%clk 0:00:09.5]} 44. h5 {[%clk 0:00:01.8]} 44... Nc7 {[%clk 0:00:09]} 45. Kd3
{[%clk 0:00:01.8]} 45... f4 {[%clk 0:00:09.1]} 0-1

[Event "Early-Titled-Tuesday-Blitz-October-10-2023"]
[Site "Chess.com"]
[Date "2023.10.10"]
[Round "9"]
[White "Oleksandr_Bortnyk"]
[Black "TigrVShlyape"]
[Result "1-0"]
[WhiteElo "3055"]
[BlackElo "2932"]
[TimeControl "180+1"]
[EndTime "9:44:22 PDT"]
[Termination "Oleksandr_Bortnyk won on time"]

1. d4 {[%clk 0:02:57.4]} 1... d5 {[%clk 0:02:56.6]} 2. Nc3 {[%clk 0:02:58.2]}
2... Nf6 {[%clk 0:02:54.8]} 3. Bf4 {[%clk 0:02:58.9]} 3... c6 {[%clk 0:02:49]}
4. e3 {[%clk 0:02:59.1]} 4... Bf5 {[%clk 0:02:47.2]} 5. Nf3 {[%clk 0:02:59.4]}
5... e6 {[%clk 0:02:45.8]} 6. Ne5 {[%clk 0:02:59.7]} 6... h5 {[%clk 0:02:41.9]}
7. Bd3 {[%clk 0:02:59.8]} 7... Nbd7 {[%clk 0:02:37.8]} 8. O-O {[%clk 0:02:53.3]}
8... Be7 {[%clk 0:02:30.2]} 9. Bxf5 {[%clk 0:02:46.2]} 9... exf5 {[%clk
0:02:29.8]} 10. Qd3 {[%clk 0:02:46.7]} 10... g6 {[%clk 0:02:29]} 11. f3 {[%clk
0:02:46.7]} 11... O-O {[%clk 0:02:04.2]} 12. Rae1 {[%clk 0:02:27]} 12... Nxe5
{[%clk 0:02:01.7]} 13. Bxe5 {[%clk 0:02:14.3]} 13... Nd7 {[%clk 0:01:56.4]} 14.
Bg3 {[%clk 0:02:10.2]} 14... h4 {[%clk 0:01:39]} 15. Bf2 {[%clk 0:02:05]} 15...
h3 {[%clk 0:01:37.3]} 16. gxh3 {[%clk 0:01:58.5]} 16... Bh4 {[%clk 0:01:35.7]}
17. e4 {[%clk 0:01:57.3]} 17... Qg5+ {[%clk 0:01:34.5]} 18. Kh1 {[%clk
0:01:56.3]} 18... Rae8 {[%clk 0:01:28.7]} 19. e5 {[%clk 0:01:10.6]} 19... Bxf2
{[%clk 0:01:26.5]} 20. Rxf2 {[%clk 0:01:11.5]} 20... Qh4 {[%clk 0:01:25]} 21.
Ref1 {[%clk 0:01:01.6]} 21... Kg7 {[%clk 0:01:23.8]} 22. Rg2 {[%clk 0:00:58.7]}
22... Qxh3 {[%clk 0:01:20.2]} 23. Ne2 {[%clk 0:00:58.9]} 23... Rh8 {[%clk
0:00:32.4]} 24. Nf4 {[%clk 0:00:57]} 24... Qh4 {[%clk 0:00:31.3]} 25. Qxf5
{[%clk 0:00:40]} 25... Nf8 {[%clk 0:00:31.1]} 26. Rfg1 {[%clk 0:00:27.6]} 26...
Rh6 {[%clk 0:00:30]} 27. c3 {[%clk 0:00:21]} 27... Ne6 {[%clk 0:00:16.3]} 28.
Nxe6+ {[%clk 0:00:04.7]} 28... Rxe6 {[%clk 0:00:16]} 29. Qg4 {[%clk 0:00:05.3]}
29... Rh5 {[%clk 0:00:14]} 30. Qxh4 {[%clk 0:00:04.2]} 30... Rxh4 {[%clk
0:00:14]} 31. Rg4 {[%clk 0:00:04.2]} 31... Rh5 {[%clk 0:00:13.8]} 32. Kg2 {[%clk
0:00:04.1]} 32... Re8 {[%clk 0:00:12.3]} 33. h4 {[%clk 0:00:03.8]} 33... Kf8
{[%clk 0:00:09.8]} 34. Kg3 {[%clk 0:00:03.2]} 34... Ke7 {[%clk 0:00:10.1]} 35.
Re1 {[%clk 0:00:02.8]} 35... Ke6 {[%clk 0:00:09.6]} 36. Rf4 {[%clk 0:00:03.5]}
36... Rf5 {[%clk 0:00:09.1]} 37. b3 {[%clk 0:00:02.8]} 37... Rh8 {[%clk
0:00:08.8]} 38. Rxf5 {[%clk 0:00:03.3]} 38... Kxf5 {[%clk 0:00:08.8]} 39. c4
{[%clk 0:00:03.5]} 39... dxc4 {[%clk 0:00:07.2]} 40. bxc4 {[%clk 0:00:04.4]}
40... Rd8 {[%clk 0:00:04.8]} 41. Re4 {[%clk 0:00:04.6]} 41... Ke6 {[%clk
0:00:03.2]} 42. Kg4 {[%clk 0:00:05.5]} 42... b5 {[%clk 0:00:02.6]} 43. cxb5
{[%clk 0:00:04.9]} 43... cxb5 {[%clk 0:00:03]} 44. Rf4 {[%clk 0:00:04.5]} 44...
b4 {[%clk 0:00:03.1]} 45. Kg5 {[%clk 0:00:04.1]} 45... a5 {[%clk 0:00:02.1]} 46.
Rf6+ {[%clk 0:00:04.1]} 46... Ke7 {[%clk 0:00:02.5]} 47. Ra6 {[%clk 0:00:05]}
47... Rd5 {[%clk 0:00:02.1]} 48. f4 {[%clk 0:00:04.7]} 1-0